[Event "26th Womens ECCC 2022"]
[Site "Mayrhofen"]
[Date "2022.10.05"]
[Round "3.26"]
[White "Gaponenko, Inna"]
[Black "Belenkaya, Dina"]
[Result "1/2-1/2"]
[ECO "B12"]
[WhiteElo "2348"]
[BlackElo "2263"]
[Annotator "TA"]
[PlyCount "114"]
[EventDate "2022.10.03"]
[EventType "team-tourn"]
[EventCountry "AUT"]
[SourceTitle "playchess.com"]
[Source "ChessBase"]
[SourceQuality "1"]
[TimeControl "40/5400+30:1800+30"]

{[%evp 9,114,45,50,-11,0,-35,-28,-39,-43,-104,-67,-84,-72,-85,-57,-63,-79,-142,-147,-142,-138,-124,-93,-105,-69,-80,-60,-73,35,0,0,0,0,0,0,-35,0,0,0,-195,-208,-206,-204,-185,-185,-148,0,0,0,0,0,0,0,0,0,0,0,0,0,0,0,0,0,0,0,0,0,0,0,0,0,0,0,0,8,8,8,8,8,0,0,0,0,0,0,0,0,0,0,0,0,0,0,0,0,0,0,0,0,0,0,0,0,0,0,0,0]} 1. e4 {[%emt 0:00:03]} c6 {[%emt 0:03:20]} 2. d4 {[%emt 0:00:06]} d5 {[%emt 0:00:09]} 3. e5 {[%emt 0:00:08]} Qb6 {[%emt 0:00:07]} 4. c3 {[%emt 0:26:36]} Bf5 {[%emt 0:02:06]} 5. Nd2 {[%emt 0:00:09]} e6 {[%emt 0:05:19] [#]} 6. g4 $146 {[%emt 0:34:08] B12: Caro-Kann: Advance Variation.} ({White should try} 6. Ngf3 $14) ({Predecessor:} 6. f4 c5 7. Ngf3 Nc6 8. Qa4 Bg4 9. h3 Bxf3 10. Nxf3 cxd4 11. Nxd4 Bc5 12. Bb5 {1-0 (66) Indzhiev,A-Bakuev,V (1840) Elista 2012}) 6... Bg6 $11 {[%emt 0:00:33]} 7. Nh3 {[%emt 0:00:03]} c5 $1 {[%emt 0:04:46]} 8. Nb3 {[%emt 0:06:57] Black has an edge.} cxd4 {[%emt 0:01:30]} 9. cxd4 {[%emt 0:01:36]} (9. Nxd4 $15 Bc5 10. Nb3) 9... Bb4+ {[%emt 0:03:32]} 10. Bd2 {[%emt 0:00:34]} Nc6 {[%emt 0:02:31]} 11. Bc3 {[%emt 0:06:33] [#]} a5 $1 {[%emt 0:01:35]} 12. a4 {[%emt 0:00:18]} h5 $1 {[%emt 0:08:02]} 13. Bb5 {[%emt 0:13:31] [#]} (13. Nf4 $142) 13... hxg4 $1 $17 {[%emt 0:06:10]} 14. Qxg4 {[%emt 0:00:15]} Nh6 {[%emt 0:05:19]} 15. Qd1 {[%emt 0:00:41]} Be4 {[%emt 0:06:21]} 16. f3 {[%emt 0:03:08]} Bh7 {[%emt 0:04:14]} 17. Bxb4 {[%emt 0:02:31]} axb4 {[%emt 0:00:07]} 18. Qd2 {[%emt 0:00:21]} Kf8 {[%emt 0:03:35]} ({Better is} 18... O-O $17) 19. Rc1 {[%emt 0:01:32]} (19. Bxc6 $5 Qxc6 20. Qxb4+ Kg8 21. Rc1 $11) 19... Nf5 {[%emt 0:01:44][%cal Rf5d4]} 20. Bxc6 {[%emt 0:00:26]} bxc6 {[%emt 0:00:07]} 21. a5 {[%emt 0:00:05]} Qb5 {[%emt 0:02:51]} 22. Nf4 {[%emt 0:00:01]} Nh4 {[%emt 0:03:08]} (22... Qa4 $5 {[%cal Ra4b3]} 23. Nc5 (23. Qc2 g5 $17) 23... Qxa5 $15) 23. Kf2 {[%emt 0:00:52]} Bf5 {[%emt 0:07:45]} 24. Rc5 $2 {[%emt 0:00:04]} (24. Qe3 $11 {and White is okay.}) 24... Qa4 $19 {[%emt 0:02:23]} 25. Qe3 {[%emt 0:00:03] And now Ra1 would win.} Qa2 {[%emt 0:02:17]} 26. Rxc6 {[%emt 0:00:33][%cal Oa5a6]} Qxb2+ {[%emt 0:05:20]} 27. Ne2 {[%emt 0:00:05][%cal Oe3c1]} Nxf3 {[%emt 0:02:40]} 28. Qc1 $1 $36 {[%emt 0:00:55][%mdl 2048] White has some pressure. The board is on fire. The position is equal.} Qxc1 {[%emt 0:07:11]} (28... Rxh2+ $2 29. Rxh2 Qxc1 30. Rh8+ Ke7 31. Nexc1 $18) (28... Qxb3 $5 29. Rc8+ $8 Rxc8 30. Qxc8+ Ke7 31. Qc7+ Ke8 $11) 29. Rhxc1 {[%emt 0:00:49] aiming for Rc8+.} Rxh2+ {[%emt 0:00:52]} (29... Rh3 $2 30. Rc8+ (30. Nf4 Rxh2+ 31. Kxf3 g5 $14) 30... Rxc8 31. Rxc8+ Ke7 32. a6 $18) 30. Kxf3 {[%emt 0:00:25]} Be4+ {[%emt 0:00:29]} 31. Kg4 {[%emt 0:01:38]} Rxe2 {[%emt 0:06:51]} 32. Rc8+ {[%emt 0:00:03]} Rxc8 {[%emt 0:00:05]} 33. Rxc8+ {[%emt 0:00:02][%mdl 4096] Endgame KRB-KRN} Ke7 {[%emt 0:00:02]} 34. Rc7+ {[%emt 0:00:09]} Kd8 $1 {[%emt 0:01:39]} 35. Rxf7 {[%emt 0:00:35]} Rg2+ {[%emt 0:00:14]} 36. Kh3 {[%emt 0:00:17]} Ra2 {[%emt 0:01:04] ...Ra3 is the strong threat.} 37. Nc5 {[%emt 0:01:49]} b3 {[%emt 0:00:34]} 38. Nb7+ {[%emt 0:00:49]} Kc8 {[%emt 0:00:14]} 39. Nd6+ {[%emt 0:00:03]} Kd8 {[%emt 0:02:21] Strongly threatening ...b2.} 40. Nb7+ {[%emt 0:00:04]} Kc8 {[%emt 0:00:04]} 41. Nd6+ {[%emt 0:30:04]} Kb8 {[%emt 0:04:33]} 42. Rb7+ {[%emt 0:00:00]} Ka8 {[%emt 0:00:10]} 43. Rxb3 {[%emt 0:00:00]} Rxa5 {[%emt 0:02:50]} 44. Kg3 {[%emt 0:00:00]} Ra4 {[%emt 0:06:14]} 45. Nxe4 {[%emt 0:00:00]} dxe4 {[%emt 0:00:13] KR-KR} 46. Kf4 {[%emt 0:00:00]} Rxd4 {[%emt 0:01:52]} 47. Rb6 {[%emt 0:00:00]} g5+ {[%emt 0:03:29]} 48. Ke3 {[%emt 0:00:00]} ({Don't go for} 48. Kxg5 $2 e3 49. Rb2 Re4 $19) 48... Ra4 {[%emt 0:02:39]} 49. Rxe6 {[%emt 0:00:00] Threatens to win with Rb6.} Kb7 {[%emt 0:01:37] Prevents Rb6+.} 50. Rg6 {[%emt 0:00:00]} Kc7 {[%emt 0:00:32]} 51. Rxg5 {[%emt 0:00:00]} Kd7 {[%emt 0:00:16]} 52. Rg6 {[%emt 0:00:00]} Ke7 {[%emt 0:00:39]} 53. Rb6 {[%emt 0:00:00]} Ra1 {[%emt 0:02:05]} 54. Kxe4 {[%emt 0:00:00]} Re1+ {[%emt 0:00:04]} 55. Kd5 {[%emt 0:00:00]} Rd1+ {[%emt 0:00:04]} 56. Ke4 {[%emt 0:00:00]} Re1+ {[%emt 0:00:03]} 57. Kd5 {[%emt 0:00:00]} Rd1+ {[%emt 0:00:04] Weighted Error Value: White=0.16 (very precise) /Black=0.13 (very precise)} 1/2-1/2

[Event "26th Womens ECCC 2022"]
[Site "Mayrhofen"]
[Date "2022.10.05"]
[Round "3.27"]
[White "Levitan, Ronit"]
[Black "Doluhanova, Evgeniya"]
[Result "0-1"]
[ECO "C54"]
[WhiteElo "2024"]
[BlackElo "2264"]
[Annotator "TA"]
[PlyCount "70"]
[EventDate "2022.10.03"]
[EventType "team-tourn"]
[EventCountry "AUT"]
[SourceTitle "playchess.com"]
[Source "ChessBase"]
[SourceQuality "1"]
[TimeControl "40/5400+30:1800+30"]

{[%evp 21,70,35,34,18,17,0,69,56,66,0,19,-38,-37,-79,-89,-184,-57,-172,-171,-173,-171,-162,-164,-308,-308,-308,-308,-308,-304,-310,-302,-308,-307,-309,-300,-387,-385,-404,-406,-397,-400,-402,-405,-576,-544,-592,-583,-1583,-1556,-29993,-29990]} 1. e4 {[%emt 0:00:44]} e5 {[%emt 0:00:12]} 2. Nf3 {[%emt 0:00:06]} Nc6 {[%emt 0:00:07]} 3. Bc4 {[%emt 0:00:17]} Bc5 {[%emt 0:00:04]} 4. c3 {[%emt 0:00:09]} Nf6 {[%emt 0:00:10]} 5. d3 {[%emt 0:00:07]} O-O {[%emt 0:00:28]} 6. O-O {[%emt 0:00:16]} a6 {[%emt 0:00:29]} 7. Nbd2 {[%emt 0:01:05][%cal Bb1d2,Bd2f1,Bf1g3][%mdl 32]} d6 {[%emt 0:01:42]} 8. Bb3 {[%emt 0:00:23]} Ba7 {[%emt 0:01:51]} 9. h3 {[%emt 0:01:30]} Ne7 {[%emt 0:00:25]} 10. Re1 {[%emt 0:00:23]} Ng6 {[%emt 0:01:47]} 11. Nf1 {[%emt 0:00:54]} Be6 {[%emt 0:05:52]} 12. Bxe6 {[%emt 0:02:42] C54: Giuoco Piano: 4 c3 Nf6, main lines with 5 d4 and 5 d3.} fxe6 {[%emt 0:00:10] [#]} 13. Ng3 $146 {[%emt 0:01:07]} ({Predecessor:} 13. d4 exd4 14. cxd4 Kh8 15. Ng3 e5 16. dxe5 Nxe5 17. Nxe5 dxe5 18. Be3 Bxe3 19. Rxe3 Qxd1+ 20. Rxd1 {1-0 (55) Fleri,M (1739)-Dharmasena,K (1548) Torquay 2019}) 13... Nf4 {[%emt 0:06:11]} (13... Nd7 $11) 14. d4 {[%emt 0:08:14] White is slightly better.} (14. Bxf4 $5 exf4 15. Nf1 $14) 14... Nd7 {[%emt 0:01:16]} 15. Be3 {[%emt 0:11:53]} (15. Bxf4 $14 exf4 16. Nf1) 15... exd4 {[%emt 0:09:26]} 16. Bxd4 {[%emt 0:06:31]} ({Better is} 16. cxd4 $11 Bb6 17. Qd2) 16... Nc5 {[%emt 0:09:19]} 17. Bxc5 {[%emt 0:17:34]} Bxc5 {[%emt 0:00:28]} 18. Nd4 {[%emt 0:00:12]} (18. Rf1 $17) 18... Qf6 {[%emt 0:02:58]} (18... e5 $19 19. Ndf5 Qg5) 19. Qd2 {[%emt 0:03:29]} ({White should try} 19. Nge2 $15) 19... Qg5 $19 {[%emt 0:11:22][%cal Of4h3] aiming for ...Nxh3+!} 20. Kh2 {[%emt 0:19:57] [#]} Nxh3 $1 {[%emt 0:02:08][%mdl 512]} 21. Qxg5 {[%emt 0:00:24]} Nxg5 {[%emt 0:01:55]} 22. Kg1 {[%emt 0:04:03]} (22. f3 $142) 22... e5 {[%emt 0:03:32]} 23. Ndf5 {[%emt 0:00:31]} g6 {[%emt 0:00:16]} 24. Ne3 {[%emt 0:01:32]} h5 {[%emt 0:00:28][%cal Bh7h5,Bh5h4][%mdl 32]} 25. f3 {[%emt 0:01:17]} h4 {[%emt 0:01:31]} 26. Ngf1 {[%emt 0:00:10]} h3 {[%emt 0:01:10] ...hxg2 is the strong threat.} 27. Nd2 {[%emt 0:01:09]} Rf7 {[%emt 0:02:16]} 28. Re2 {[%emt 0:02:48]} Raf8 {[%emt 0:00:46]} 29. Rf1 {[%emt 0:00:18]} hxg2 {[%emt 0:01:58]} 30. Kxg2 {[%emt 0:00:16]} Ne6 {[%emt 0:00:10]} 31. Kg3 {[%emt 0:02:36]} Nf4 {[%emt 0:01:28]} 32. Ree1 {[%emt 0:00:04]} (32. Rfe1 {keeps fighting.}) 32... Rh7 {[%emt 0:00:59] White must now prevent ...Rh3+.} 33. b4 {[%emt 0:10:01]} Rh3+ {[%emt 0:00:44]} 34. Kg4 {[%emt 0:00:21]} Bxe3 {[%emt 0:00:14]} 35. Rxe3 {[%emt 0:00:05]} Rh2 {[%emt 0:00:04] Weighted Error Value: White=0.83/Black=0.10 (very precise)} 0-1

[Event "26th Womens ECCC 2022"]
[Site "Mayrhofen"]
[Date "2022.10.06"]
[Round "3.28"]
[White "Tarleva, Diana"]
[Black "Orian, Noga"]
[Result "1/2-1/2"]
[ECO "B90"]
[WhiteElo "2175"]
[BlackElo "1940"]
[Annotator "TA"]
[PlyCount "182"]
[EventDate "2022.10.03"]
[EventType "team-tourn"]
[EventCountry "AUT"]
[SourceTitle "playchess.com"]
[Source "ChessBase"]
[SourceQuality "1"]
[TimeControl "40/5400+30:1800+30"]

{[%evp 12,182,18,9,42,36,31,25,25,0,0,0,0,0,0,0,0,0,0,-13,0,0,0,-5,0,-85,-106,-85,-89,-129,-50,-93,-95,-97,-93,-189,-145,-189,-149,-229,-70,-85,-50,-58,-50,-73,-43,-89,-56,-62,-56,-52,-53,-50,-55,-68,-7,-99,-40,-44,-47,-57,-62,-70,-54,-108,-100,-87,-97,-95,-92,-84,-77,-109,-106,-179,-165,-144,-46,-219,-219,-246,-246,-316,-327,-256,-169,-270,-173,-195,-195,-223,-226,-547,-505,-449,-421,-440,-440,-421,-414,-404,-386,-297,-283,-260,-169,-1655,-1351,-1193,-307,-220,0,-1488,-1075,-5073,-4791,-5057,-5057,-5050,-5057,-3678,-1387,-5184,-5057,-2850,-2602,-1356,-1331,-1093,-1082,-1045,-1028,-1027,-1014,-1020,-944,-933,-845,-7285,-6266,-6520,-8,-8,-8,-8,0,-5377,-361,-3236,-2832,-1303,-1272,-537,0,0,0,0,0,0,0,0,0,0,0,0,0,0,0,0,0,0,0]} 1. e4 {[%emt 0:00:02]} c5 {[%emt 0:00:05]} 2. Nf3 {[%emt 0:02:01]} d6 {[%emt 0:00:05]} 3. d4 {[%emt 0:00:08]} cxd4 {[%emt 0:00:03]} 4. Nxd4 {[%emt 0:00:02]} Nf6 {[%emt 0:00:05]} 5. Nc3 {[%emt 0:00:08]} a6 {[%emt 0:00:02]} 6. h3 {[%emt 0:05:50]} e6 {[%emt 0:00:09]} 7. g4 {[%emt 0:01:11]} Nfd7 {[%emt 0:00:05] B81: Sicilian Scheveningen: Keres Attack.} 8. Bg2 {[%emt 0:01:39]} Be7 {[%emt 0:00:15]} 9. Be3 {[%emt 0:00:37][%cal Oh3h4]} Nc6 {[%emt 0:00:15] White has an edge.} 10. Qe2 {[%emt 0:02:21][%cal Oh3h4]} Nxd4 {[%emt 0:00:20]} 11. Bxd4 {[%emt 0:00:02]} O-O {[%emt 0:00:12]} 12. a4 {[%emt 0:03:24]} Ne5 {[%emt 0:04:26]} 13. O-O {[%emt 0:03:04]} Nc6 {[%emt 0:05:14]} 14. Be3 {[%emt 0:02:28]} Bd7 {[%emt 0:00:28]} 15. f4 {[%emt 0:02:16]} Rc8 {[%emt 0:00:39]} 16. Qf2 {[%emt 0:07:12]} Bh4 {[%emt 0:03:08]} 17. Qd2 {[%emt 0:03:07]} Na5 {[%emt 0:03:40] [#]} 18. Qxd6 $146 {[%emt 0:11:09]} (18. b3 $1 $11 {remains equal.}) ({Predecessor:} 18. b3 Qc7 19. Na2 Rfd8 20. Rac1 h6 21. Nb4 Nc6 22. c4 Be8 23. Nxc6 bxc6 24. b4 {1-0 (48) Jensen,C (2126)-Varberg,K (2208) ICCF email 2009}) 18... Nc4 $36 {[%emt 0:01:07][%csl LRb2,LRd6,LRe3][%mdl 2048] Black is on the roll.} 19. Qd4 {[%emt 0:00:23]} Be7 {[%emt 0:12:21]} 20. Bf2 {[%emt 0:03:39] [#]} Nxb2 {[%emt 0:08:02]} (20... Bc5 $1 $17 21. Qd1 Nxb2) 21. Nd1 {[%emt 0:06:35]} Nc4 {[%emt 0:03:30]} 22. e5 {[%emt 0:10:28] [#]} Bc6 {[%emt 0:04:35][%cal Og7g5]} 23. Re1 {[%emt 0:07:09]} (23. Qxd8 $17 Rfxd8 24. Ne3) (23. Bxc6 Rxc6) 23... Bxg2 {[%emt 0:01:09]} 24. Kxg2 {[%emt 0:00:17]} Qc7 {[%emt 0:04:31]} 25. Re2 {[%emt 0:02:11]} (25. Ne3 $17 {was necessary.}) 25... Qc6+ $2 {[%emt 0:04:02]} (25... Rfd8 $19 26. Qc3 h6) 26. Qe4 $15 {[%emt 0:00:13]} Rfd8 {[%emt 0:04:13]} 27. Qxc6 {[%emt 0:01:25]} Rxc6 {[%emt 0:00:01]} 28. Ne3 {[%emt 0:00:14]} Na3 {[%emt 0:02:12]} 29. Ra2 {[%emt 0:01:45]} (29. Bh4 $15 Bxh4 30. Rxa3) 29... Kf8 {[%emt 0:03:51]} 30. Rb2 {[%emt 0:01:29]} Rd7 {[%emt 0:01:26]} 31. Kf3 {[%emt 0:06:13]} Ke8 {[%emt 0:06:33]} 32. Be1 {[%emt 0:00:51]} Bc5 {[%emt 0:05:31] ...Bxe3 is the strong threat.} 33. Rb3 {[%emt 0:03:49]} Kd8 {[%emt 0:08:37]} ({Better is} 33... Bxe3 $15 34. Rxa3 Bc1) 34. Bb4 {[%emt 0:03:56]} (34. Rd2 $11 {keeps the balance.}) 34... Bxe3 {[%emt 0:01:23]} (34... Bxb4 $17 35. Rxb4 a5) 35. Bxa3 {[%emt 0:00:37]} Bc5 {[%emt 0:04:33]} 36. Bb2 {[%emt 0:01:27]} Kc7 {[%emt 0:04:34][%cal Bd8c7,Bc7d7,Bd7c6][%mdl 32]} 37. Rd3 {[%emt 0:00:53]} Bb4 {[%emt 0:04:00]} 38. Re4 {[%emt 0:02:43]} (38. f5 $15) 38... Ba5 $1 $17 {[%emt 0:02:30]} 39. Rxd7+ {[%emt 0:01:08]} Kxd7 {[%emt 0:00:01][%mdl 4096] Endgame KRB-KRB} 40. c4 {[%emt 0:00:03]} Rb6 {[%emt 0:01:22]} 41. Ba3 {[%emt 0:31:22]} Rb1 {[%emt 0:12:32]} ({Much weaker is} 41... Rb3+ $6 42. Re3 Rb1 43. Rd3+ Kc6 44. Ke3 $15) 42. Re3 {[%emt 0:00:00]} Bb4 {[%emt 0:05:39]} 43. Ke4 {[%emt 0:00:00]} (43. Rd3+ $17 {keeps fighting.} Kc7 44. Ke4) 43... Kc6 $19 {[%emt 0:01:01]} 44. f5 {[%emt 0:00:00]} Kc5 {[%emt 0:00:53]} (44... a5 $17 {Strongly threatening ...Kc5.} 45. Rf3 Re1+ 46. Kd4 Rd1+ 47. Ke4 Kc5 48. fxe6 fxe6 49. Bxb4+ axb4) 45. fxe6 $2 {[%emt 0:00:00]} (45. Bxb4+ $1 $15 Rxb4 46. Rd3) 45... fxe6 {[%emt 0:00:03]} 46. Bxb4+ {[%emt 0:00:00]} Rxb4 $15 {[%emt 0:00:06] KR-KR} 47. Rf3 {[%emt 0:00:00]} Rxc4+ {[%emt 0:00:06]} 48. Kd3 {[%emt 0:00:00]} Rd4+ {[%emt 0:00:06]} 49. Kc3 {[%emt 0:00:00]} (49. Kc2 {was worth a try.}) 49... Rd7 {[%emt 0:00:42]} 50. Rf4 {[%emt 0:00:00]} b5 {[%emt 0:00:29] Prevents Rc4+.} 51. axb5 {[%emt 0:00:00]} axb5 {[%emt 0:00:03]} 52. h4 $2 {[%emt 0:00:00]} (52. Rf1) 52... b4+ $19 {[%emt 0:03:00]} 53. Kc2 {[%emt 0:00:00]} Kd5 {[%emt 0:00:27]} 54. Rxb4 {[%emt 0:00:00]} Kxe5 {[%emt 0:00:07] White must now prevent ...Rd4.} 55. Kc3 {[%emt 0:00:00]} g6 {[%emt 0:02:17]} 56. Ra4 {[%emt 0:00:00] [#]} h6 $1 {[%emt 0:02:20]} 57. Rb4 {[%emt 0:00:00]} Rd1 {[%emt 0:01:19] Threatens to win with ...Rh1.} 58. Rb8 {[%emt 0:00:00]} Rh1 {[%emt 0:01:13]} 59. h5 $2 {[%emt 0:00:00]} (59. Rg8) 59... gxh5 {[%emt 0:00:20]} 60. gxh5 {[%emt 0:00:00]} Kf5 $2 {[%emt 0:01:44]} (60... Ke4 61. Rb6 Kf5) 61. Rf8+ {[%emt 0:00:00] [#]} Ke5 $2 {[%emt 0:00:17]} (61... Kg5 $1 $19 62. Kd3 Rxh5) 62. Kd3 $2 {[%emt 0:00:00][%mdl 8192]} (62. Rb8 $11) 62... Rxh5 {[%emt 0:00:15]} 63. Rf3 {[%emt 0:00:00] Against Rh3} Rh2 {[%emt 0:00:41]} 64. Ke3 {[%emt 0:00:00]} h5 {[%emt 0:00:58]} 65. Rg3 {[%emt 0:00:00]} Rh4 {[%emt 0:01:20]} 66. Rg5+ {[%emt 0:00:00]} Kf6 {[%emt 0:00:06]} 67. Ra5 {[%emt 0:00:00]} e5 {[%emt 0:01:53]} 68. Ra8 {[%emt 0:00:00]} Rg4 {[%emt 0:02:08]} 69. Rf8+ {[%emt 0:00:00]} Ke6 {[%emt 0:00:10]} 70. Re8+ {[%emt 0:00:00]} Kd6 {[%emt 0:00:12]} 71. Rd8+ {[%emt 0:00:00]} Ke7 {[%emt 0:00:15]} 72. Rh8 {[%emt 0:00:00]} h4 {[%emt 0:00:11] aiming for ...Kf7.} 73. Rh6 {[%emt 0:00:00]} Kf7 {[%emt 0:00:36]} 74. Kf3 {[%emt 0:00:03]} Rb4 {[%emt 0:02:45]} 75. Kg2 {[%emt 0:00:09]} Kg7 {[%emt 0:01:25]} 76. Re6 {[%emt 0:00:10]} Rb5 $2 {[%emt 0:01:04]} (76... Rg4+ $19 77. Kh3 Re4) 77. Kh3 $11 {[%emt 0:01:57]} Kf7 {[%emt 0:00:10]} 78. Rh6 {[%emt 0:00:18]} Rb4 {[%emt 0:00:20]} 79. Ra6 $2 {[%emt 0:01:23][%mdl 8192]} (79. Kg2 $11 Rf4 80. Kh3) 79... Rf4 $19 {[%emt 0:00:22] Hoping for ...e4.} 80. Rh6 {[%emt 0:00:09]} Ke7 {[%emt 0:00:33]} 81. Ra6 {[%emt 0:05:19]} e4 {[%emt 0:00:31]} 82. Kg2 {[%emt 0:00:01]} e3 $2 {[%emt 0:00:53]} ({Black should try} 82... Kf7 $19 83. Rb6 Rf6) 83. Ra2 $11 {[%emt 0:01:16] The position is equal.} Ke6 {[%emt 0:00:42] ( -> ...Kf5)} 84. Re2 $1 {[%emt 0:00:01]} Rg4+ {[%emt 0:00:29]} 85. Kf3 {[%emt 0:00:17]} Rg3+ 86. Kf4 {[%emt 0:00:06]} Kf6 {[%emt 0:00:56]} 87. Rxe3 {[%emt 0:00:15]} Rxe3 {[%emt 0:00:34]} 88. Kxe3 {[%emt 0:00:01]} Kg5 {[%emt 0:00:12]} 89. Kf3 {[%emt 0:00:02]} Kf5 {[%emt 0:00:07]} 90. Kg2 {[%emt 0:00:08]} Kg4 {[%emt 0:00:14]} 91. Kh2 {[%emt 0:00:08]} h3 {[%emt 0:00:06] Weighted Error Value: White=0.41/Black=0.33} 1/2-1/2

[Event "26th Womens ECCC 2022"]
[Site "Mayrhofen"]
[Date "2022.10.05"]
[Round "3.29"]
[White "Katkov, Michelle"]
[Black "Peglau, Charis"]
[Result "1-0"]
[ECO "B10"]
[WhiteElo "2219"]
[BlackElo "1960"]
[Annotator "TA"]
[PlyCount "81"]
[EventDate "2022.10.03"]
[EventType "team-tourn"]
[EventCountry "AUT"]
[SourceTitle "playchess.com"]
[Source "ChessBase"]
[SourceQuality "1"]
[TimeControl "40/5400+30:1800+30"]

{[%evp 9,81,17,32,27,28,29,31,29,31,22,30,22,90,89,75,70,74,74,80,75,66,79,92,93,115,108,179,149,527,535,522,512,940,908,854,497,768,755,1050,1008,5510,3133,5377,822,919,378,369,369,330,343,369,363,450,362,410,393,485,481,649,646,1320,525,456,441,1283,600,1341,1286,1029,539,514,513,29994,794]} 1. e4 {[%emt 0:00:02]} c6 {[%emt 0:00:04]} 2. Nf3 {[%emt 0:00:07]} d5 {[%emt 0:00:03]} 3. d3 {[%emt 0:00:03]} Bg4 {[%emt 0:00:06]} 4. h3 {[%emt 0:00:08]} Bxf3 {[%emt 0:00:05]} 5. Qxf3 {[%emt 0:00:05]} e6 {[%emt 0:00:17]} 6. g3 {[%emt 0:00:17] B10: Caro-Kann: 2 d3 and 2 c4.} Bd6 {[%emt 0:01:59]} 7. Bg2 {[%emt 0:00:32][%cal Re4d5]} Nd7 {[%emt 0:01:10]} 8. O-O {[%emt 0:07:54][%cal Re4d5] White is slightly better.} Ne7 {[%emt 0:03:03]} 9. Qe2 {[%emt 0:07:17]} Qc7 {[%emt 0:05:52]} 10. Nd2 {[%emt 0:01:56] [#]} O-O-O $146 {[%emt 0:03:50]} (10... O-O $11) ({Predecessor:} 10... h5 11. d4 Qb6 12. c4 Qxd4 13. exd5 cxd5 14. cxd5 exd5 15. Nb3 Qe5 16. Qb5 O-O-O {1-0 (25) Jaracz,P (2340)-Pedersen,D (2225) Aarhus 1993}) 11. d4 $16 {[%emt 0:10:58]} e5 {[%emt 0:11:06]} 12. c4 {[%emt 0:15:43]} dxc4 {[%emt 0:17:23]} 13. dxe5 {[%emt 0:03:50]} Nxe5 {[%emt 0:00:26]} 14. Nxc4 {[%emt 0:00:36]} Nxc4 {[%emt 0:00:39]} 15. Qxc4 {[%emt 0:00:08]} f5 {[%emt 0:05:12]} 16. Be3 {[%emt 0:10:48]} Kb8 {[%emt 0:07:14] [#]} 17. Qa4 $1 {[%emt 0:10:54] White is more active.} c5 {[%emt 0:01:49]} (17... a6 $16) 18. b4 {[%emt 0:01:57]} fxe4 $2 {[%emt 0:03:01][%mdl 8192] Loses the game.} (18... f4 $16 19. gxf4 Bxf4) 19. bxc5 $18 {[%emt 0:00:50]} Be5 {[%emt 0:00:17]} 20. Qxe4 {[%emt 0:02:02]} Nd5 {[%emt 0:06:13]} (20... Ka8 $142 21. Rab1 Nc6) 21. Rab1 {[%emt 0:02:13] Hoping for Rfd1.} Rhe8 {[%emt 0:01:13]} 22. Bg5 {[%emt 0:06:25] A strong pair of Bishops.} Rd7 {[%emt 0:06:38]} (22... Bf6 $142 23. Bf4 Rxe4 24. Bxc7+ Kxc7) 23. Qc4 {[%emt 0:01:01]} Qc6 {[%emt 0:14:24]} 24. Rfd1 {[%emt 0:00:24][%cal Rd1d5]} Qg6 {[%emt 0:00:25]} 25. Bxd5 {[%emt 0:01:27] Qb5 would kill now.} Qxg5 {[%emt 0:00:24] [#]} 26. Qb3 {[%emt 0:03:41]} (26. Bxb7 $142 $1 {[%mdl 512]} Rxd1+ 27. Rxd1) 26... Red8 {[%emt 0:01:54]} 27. c6 {[%emt 0:01:09]} (27. Kg2 $142 {[%cal Rd5b7]} Bxg3 28. fxg3) 27... Rc7 {[%emt 0:00:05]} 28. Bg2 {[%emt 0:02:02]} Bd4 {[%emt 0:03:19]} 29. Qf3 {[%emt 0:02:13][%cal Rb1b7]} ({Resist} 29. cxb7 Rc3 30. Qf7 Rxg3 $18) 29... b6 {[%emt 0:00:58]} 30. a4 {[%emt 0:01:57]} Qe7 {[%emt 0:02:37]} 31. Qf4 {[%emt 0:02:37]} g5 {[%emt 0:02:11]} 32. Qd2 {[%emt 0:00:44]} Qe5 {[%emt 0:01:45]} 33. Kh1 {[%emt 0:00:46]} Qe7 {[%emt 0:00:37]} 34. a5 {[%emt 0:00:26] Black must now prevent axb6.} Kc8 {[%emt 0:00:31]} 35. axb6 {[%emt 0:00:31]} (35. Qa2 $142 {Intending axb6 and mate.} b5 36. Rxb5) 35... Bxb6 {[%emt 0:00:12]} 36. Qc2 {[%emt 0:01:35] Threatens to win with Qf5+.} Rf8 {[%emt 0:00:39] Against Qf5+} (36... Rxd1+ $142 37. Rxd1 Kb8) 37. Rf1 {[%emt 0:00:23]} (37. Qa4 $142 Qc5 38. Qa6+ Kb8 39. Rb5 Qxf2 40. Rdb1) 37... h6 {[%emt 0:00:23]} 38. Qa2 {[%emt 0:01:24][%cal Ob1b6]} Qc5 {[%emt 0:00:39]} 39. Qe6+ {[%emt 0:00:21]} Kb8 {[%emt 0:00:09]} 40. Qxh6 {[%emt 0:00:39]} Qc2 {[%emt 0:01:05]} (40... Qf5 $18 41. Qd6 Rfc8) 41. Qxf8+ {Weighted Error Value: White=0.98/Black=0.82} 1-0